fUST/lending_fUST_20250603
["ID","MTS","AMOUNT","RATE_DAILY","PERIOD"]
[363933222,1748937043373,-440.0,0.0001945,2]
[363933224,1748937043383,-1098.76,0.00019451,2]
[363933226,1748937043393,-1035.73,0.00019451,2]
[363933228,1748937043403,-440.0,0.00019451,2]
[363933230,1748937043412,-440.0,0.00019451,2]
[363933232,1748937043422,-440.0,0.00019451,2]
[363933233,1748937043432,-440.0,0.00019452,2]
[363933235,1748937043442,-440.0,0.00019452,2]
[363933238,1748937043452,-440.0,0.00019452,2]
[363933240,1748937043462,-440.0,0.00019452,2]
[363933242,1748937043472,-1012.6,0.00019452,2]
[363933243,1748937043481,-440.0,0.00019452,2]
[363933245,1748937043492,-485.68,0.00019452,2]
[363933247,1748937043501,-731.96,0.00019452,2]
[363933249,1748937043511,-577.84,0.00019453,2]
[363933251,1748937043522,-181.08010149,0.00019453,2]
[363933254,1748937043532,-1136.87229035,0.00019489,2]
[363933255,1748937043541,-162.00424286,0.00019499,2]
[363933257,1748937043551,-177.92407056,0.00019508,2]
[363933259,1748937043561,-187.78006525,0.00019508,2]
[363933261,1748937043571,-194.72792766,0.00019563,2]
[363933263,1748937043581,-577.30699267,0.00019595,2]
[363933266,1748937043590,-1309.888251,0.00019599,2]
[363933268,1748937043600,-7639.0734438,0.000196,2]
[363933270,1748937043610,-201.93286099,0.00019618,2]
[363933272,1748937043620,-1422.85595181,0.00019659,2]
[363933275,1748937043630,-209.40437684,0.00019673,2]
[363933276,1748937043640,-1136.87229035,0.00019695,2]
[363933278,1748937043649,-6370.0,0.000197,2]
[363933281,1748937043659,-6370.0,0.000197,2]
[363933283,1748937043669,-2463.5143733,0.000197,2]
[363933299,1748937043883,-3906.4856267,0.000197,2]
[363933300,1748937043893,-841.01220924,0.000197,2]
[363933301,1748937043906,-417.75607002,0.000197,2]
[363933302,1748937043950,-440.0,0.00017258,2]
[363933303,1748937043960,-440.0,0.00017532,2]
[363933304,1748937043970,-440.0,0.00017806,2]
[363933305,1748937043981,-440.0,0.0001808,2]
[363933306,1748937043991,-440.0,0.00018354,2]
[363933307,1748937044000,-1187.36322996,0.000197,2]
[363933308,1748937044017,-440.0,0.00018628,2]
[363933309,1748937044027,-3923.86849078,0.000197,2]
[363933310,1748937044037,-6370.0,0.000197,2]
[363933311,1748937044046,-6370.0,0.000197,2]
[363933313,1748937044056,-4840.13150922,0.000197,2]
[363933348,1748937044394,-25.9605737,0.000197,2]
[363933401,1748937046503,-212.86879254,0.00017937,2]
[363933402,1748937046513,-440.0,0.00018902,2]
[363933403,1748937046523,-440.0,0.00019176,2]
[363933404,1748937046532,-440.0,0.0001945,2]
[363933405,1748937046542,-757.13117741,0.000197,2]
[363933416,1748937069683,500.0,0.00010959,30]
[363933417,1748937070139,500.0,0.00010959,30]
[363933418,1748937070623,500.0,0.00010959,30]
[363933419,1748937071562,500.0,0.00010959,30]
[363933420,1748937072049,500.0,0.00010959,30]
[363933421,1748937072581,500.0,0.00010959,30]
[363933422,1748937073061,639.47753519,0.00010959,30]
[363933423,1748937090780,200.0,0.00023293,120]
[363933424,1748937150774,200.0,0.00023018,120]
[363933425,1748937210799,200.0,0.00024206,120]
[363933426,1748937225613,198.16641173,0.00015287,2]
[363933427,1748937271279,200.0,0.00023164,120]
[363933428,1748937329077,742.0,0.00015,2]
[363933430,1748937588078,168.757445,0.00013699,2]
[363933432,1748937631020,500.0,0.00024658,120]
[363933433,1748937636824,-357.717621,0.000161,30]
[363933434,1748937636848,-545.25696272,0.00016234,2]
[363933435,1748937636870,-300.0,0.00016398,2]
[363933436,1748937636891,-300.0,0.00016398,2]
[363933437,1748937636914,-300.0,0.00016398,2]
[363933438,1748937636937,-1200.0,0.00016398,2]
[363933439,1748937636961,-500.0,0.00016399,2]
[363933440,1748937636985,-500.0,0.00016399,2]
[363933441,1748937637008,-500.0,0.00016399,2]
[363933442,1748937637033,-500.0,0.00016399,2]
[363933443,1748937637056,-500.0,0.00016399,2]
[363933444,1748937637078,-500.0,0.00016399,2]
[363933445,1748937637101,-500.0,0.00016399,2]
[363933446,1748937637130,-500.0,0.00016399,2]
[363933447,1748937637155,-500.0,0.00016399,2]
[363933448,1748937637177,-500.0,0.00016399,2]
[363933449,1748937637202,-500.0,0.00016399,2]
[363933450,1748937637225,-500.0,0.00016399,2]
[363933451,1748937637247,-437.34943943,0.00016399,2]
[363933452,1748937637272,-500.0,0.00016399,2]
[363933453,1748937637297,-234.64603944,0.00016399,2]
[363933454,1748937637321,-500.0,0.00016399,2]
[363933455,1748937637345,-561.2587339,0.00016399,2]
[363933456,1748937637369,-500.0,0.00016399,2]
[363933457,1748937637392,-6763.77120351,0.000164,2]
[363933458,1748937641256,500.0,0.00024658,120]
[363933459,1748937654680,500.0,0.00024658,120]
[363933460,1748937666239,500.0,0.00024658,120]
[363933461,1748937671445,177.831983,0.00015768,2]
[363933462,1748937671688,177.831983,0.00015768,61]
[363933463,1748937671896,177.831983,0.00015768,120]
[363933464,1748937683630,500.0,0.00024658,120]
[363933465,1748937694129,500.0,0.00024658,120]
[363933466,1748937696809,240.5357328,0.00015643,2]
[363933467,1748937704112,500.0,0.00024658,120]
[363933468,1748937720355,500.0,0.00024658,120]
[363933469,1748937734508,500.0,0.00024658,120]
[363933470,1748937754573,500.0,0.00024658,120]
[363933471,1748937764024,500.0,0.00024658,120]
[363933472,1748937776072,500.0,0.00024658,120]
[363933473,1748937784586,500.0,0.00024658,120]
[363933474,1748937798324,500.0,0.00024658,120]
[363933475,1748937806696,500.0,0.00024658,120]
[363933476,1748937808921,210.1925145,0.00015643,2]
[363933477,1748937813831,500.0,0.00024658,120]
[363933478,1748937820870,500.0,0.00024658,120]
[363933479,1748937844618,500.0,0.00024658,120]
[363933480,1748937854197,500.0,0.00024658,120]
[363933481,1748937862900,500.0,0.00024658,120]
[363933482,1748937869662,500.0,0.00024658,120]
[363933483,1748937879266,500.0,0.00024658,120]
[363933484,1748937896861,24900.0,0.00015758,2]
[363933485,1748937908488,500.0,0.00024658,120]
[363933486,1748937915380,500.0,0.00024658,120]
[363933487,1748937922931,500.0,0.00024658,120]
[363933488,1748937941418,500.0,0.00024658,120]
[363933489,1748937950110,500.0,0.00024658,120]
[363933490,1748937958170,500.0,0.00024658,120]
[363933491,1748937965160,500.0,0.00024658,120]
[363933492,1748937982965,500.0,0.00024658,120]
[363933493,1748937991028,500.0,0.00024658,120]
[363933494,1748937998004,500.0,0.00024658,120]
[363933495,1748938022713,500.0,0.00024658,120]
[363933512,1748938045236,272.38854,0.00024658,120]
[363933537,1748938103739,5000.0,0.00016,2]
[363933538,1748938172261,3996.38179838,0.0001564,2]
[363933539,1748938172286,10087.49198312,0.0001564,2]
[363933592,1748938232775,-5000.0,0.00016235,2]
[363933594,1748938232785,-168.60597057,0.00016338,2]
[363933596,1748938232795,-300.0,0.00016399,2]
[363933598,1748938232804,-50063.10259784,0.000164,2]
[363933616,1748938234492,5000.0,0.00016,2]
[363933632,1748938239640,-10916.21797965,0.000164,2]
[363933633,1748938239652,-489.89,0.00016438,2]
[363933634,1748938239663,-430.0,0.00016438,2]
[363933635,1748938239673,-341.12738874,0.00016438,2]
[363933636,1748938239683,-430.0,0.00016438,2]
[363933637,1748938239693,-332.23135741,0.00016438,2]
[363933638,1748938239703,-356.7367605,0.00016438,2]
[363933639,1748938239714,-438.95746794,0.00016438,2]
[363933640,1748938239724,-430.0,0.00016438,2]
[363933641,1748938239734,-430.0,0.00016438,2]
[363933642,1748938239744,-433.83494658,0.00016438,2]
[363933643,1748938239755,-430.0,0.00016438,2]
[363933644,1748938239766,-430.0,0.00016438,2]
[363933645,1748938239776,-430.0,0.00016438,2]
[363933646,1748938239786,-430.0,0.00016438,2]
[363933647,1748938239798,-440.0,0.00016438,2]
[363933648,1748938239808,-440.0,0.00016438,2]
[363933649,1748938239821,-386.03243388,0.00016438,2]
[363933650,1748938239831,-440.0,0.00016438,2]
[363933651,1748938239843,-430.0,0.00016438,2]
[363933652,1748938239854,-440.0,0.00016438,2]
[363933653,1748938239865,-430.0,0.00016438,2]
[363933654,1748938239875,-440.0,0.00016438,2]
[363933655,1748938239885,-430.0,0.00016438,2]
[363933656,1748938239895,-182.58483918,0.00016438,2]
[363933657,1748938239906,-440.0,0.00016438,2]
[363933658,1748938239916,-440.0,0.00016438,2]
[363933659,1748938239926,-430.0,0.00016438,2]
[363933660,1748938239936,-248.26,0.00016438,2]
[363933661,1748938239946,-430.0,0.00016438,2]
[363933662,1748938239955,-440.0,0.00016438,2]
[363933663,1748938239966,-500.0,0.00016438,2]
[363933664,1748938239975,-430.0,0.00016438,2]
[363933665,1748938239985,-430.0,0.00016438,2]
[363933666,1748938239995,-440.0,0.00016438,2]
[363933667,1748938240004,-430.78447704,0.00016438,2]
[363933668,1748938240014,-430.0,0.00016438,2]
[363933669,1748938240023,-440.0,0.00016438,2]
[363933670,1748938240033,-440.0,0.00016438,2]
[363933671,1748938240042,-430.0,0.00016438,2]
[363933672,1748938240052,-440.0,0.00016438,2]
[363933673,1748938240061,-440.0,0.00016438,2]
[363933675,1748938240071,-440.0,0.00016438,2]
[363933676,1748938240081,-440.0,0.00016438,2]
[363933677,1748938240090,-440.0,0.00016438,2]
[363933678,1748938240100,-509.79,0.00016438,2]
[363933679,1748938240110,-430.0,0.00016438,2]
[363933680,1748938240119,-440.0,0.00016438,2]
[363933681,1748938240129,-440.0,0.00016438,2]
[363933682,1748938240139,-440.0,0.00016438,2]
[363933683,1748938240148,-380.06358609,0.00016438,2]
[363933684,1748938240158,-192.00517809,0.00016438,2]
[363933685,1748938240172,-159.05,0.00016438,2]
[363933686,1748938240182,-440.0,0.00016438,2]
[363933687,1748938240192,-440.0,0.00016438,2]
[363933688,1748938240202,-440.0,0.00016438,2]
[363933689,1748938240212,-434.07422914,0.00016438,2]
[363933690,1748938240222,-420.0,0.00016438,2]
[363933691,1748938240232,-440.0,0.00016438,2]
[363933692,1748938240242,-440.0,0.00016438,2]
[363933693,1748938240252,-440.0,0.00016438,2]
[363933694,1748938240262,-440.0,0.00016438,2]
[363933695,1748938240272,-440.0,0.00016438,2]
[363933696,1748938240282,-997.71,0.00016438,2]
[363933697,1748938240293,-440.0,0.00016438,2]
[363933698,1748938240306,-430.0,0.00016438,2]
[363933699,1748938240317,-430.0,0.00016438,2]
[363933700,1748938240327,-420.0,0.00016438,2]
[363933701,1748938240337,-440.0,0.00016438,2]
[363933702,1748938240348,-186.35351445,0.00016438,2]
[363933703,1748938240360,-440.0,0.00016438,2]
[363933704,1748938240370,-440.0,0.00016438,2]
[363933705,1748938240380,-470.36,0.00016438,2]
[363933706,1748938240392,-420.0,0.00016438,2]
[363933707,1748938240403,-420.0,0.00016438,2]
[363933708,1748938240413,-1616.35,0.00016438,2]
[363933709,1748938240423,-430.0,0.00016438,2]
[363933710,1748938240433,-430.0,0.00016438,2]
[363933711,1748938240443,-440.0,0.00016438,2]
[363933713,1748938240455,-440.0,0.00016438,2]
[363933715,1748938240465,-430.0,0.00016438,2]
[363933717,1748938240475,-440.0,0.00016438,2]
[363933718,1748938240485,-430.0,0.00016438,2]
[363933720,1748938240495,-1272.71,0.00016438,2]
[363933722,1748938240505,-440.0,0.00016438,2]
[363933724,1748938240514,-430.0,0.00016438,2]
[363933727,1748938240525,-430.0,0.00016438,2]
[363933729,1748938240535,-440.0,0.00016438,2]
[363933731,1748938240545,-440.0,0.00016438,2]
[363933733,1748938240555,-440.0,0.00016438,2]
[363933735,1748938240566,-440.0,0.00016438,2]
[363933737,1748938240577,-440.0,0.00016438,2]
[363933739,1748938240587,-440.0,0.00016438,2]
[363933741,1748938240597,-440.0,0.00016438,2]
[363933743,1748938240607,-620.36,0.00016438,2]
[363933745,1748938240617,-620.36,0.00016438,2]
[363933747,1748938240627,-620.36,0.00016438,2]
[363933749,1748938240636,-620.36,0.00016438,2]
[363933751,1748938240646,-440.0,0.00016438,2]
[363933753,1748938240656,-620.36,0.00016438,2]
[363933755,1748938240665,-1941.54,0.00016438,2]
[363933757,1748938240675,-440.0,0.00016438,2]
[363933759,1748938240685,-440.0,0.00016438,2]
[363933761,1748938240694,-440.0,0.00016438,2]
[363933763,1748938240704,-440.0,0.00016438,2]
[363933765,1748938240714,-440.0,0.00016438,2]
[363933767,1748938240723,-440.0,0.00016438,2]
[363933769,1748938240733,-440.0,0.00016438,2]
[363933771,1748938240743,-440.0,0.00016438,2]
[363933773,1748938240752,-440.0,0.00016438,2]
[363933775,1748938240762,-440.0,0.00016438,2]
[363933777,1748938240772,-440.0,0.00016438,2]
[363933779,1748938240782,-440.0,0.00016438,2]
[363933781,1748938240792,-417.85237846,0.00016438,2]
[363933784,1748938240803,-468.1,0.00016438,2]
[363933786,1748938240813,-1941.77,0.00016438,2]
[363933788,1748938240823,-440.0,0.00016438,2]
[363933790,1748938240833,-440.0,0.00016438,2]
[363933792,1748938240842,-440.0,0.00016438,2]
[363933794,1748938240852,-440.0,0.00016438,2]
[363933796,1748938240862,-440.0,0.00016438,2]
[363933798,1748938240871,-440.0,0.00016438,2]
[363933800,1748938240881,-440.0,0.00016438,2]
[363933802,1748938240890,-440.0,0.00016438,2]
[363933804,1748938240899,-440.0,0.00016438,2]
[363933806,1748938240909,-1228.53,0.00016438,2]
[363933808,1748938240918,-440.0,0.00016438,2]
[363933810,1748938240929,-1831.97,0.00016438,2]
[363933812,1748938240939,-394.19423643,0.00016438,2]
[363933814,1748938240948,-641.86,0.00016438,2]
[363933816,1748938240958,-420.0,0.00016438,2]
[363933818,1748938240968,-462.13413071,0.00016438,2]
[363933820,1748938240978,-430.0,0.00016438,2]
[363933822,1748938240987,-402.73058149,0.00016438,2]
[363933824,1748938240996,-361.8041462,0.00016438,2]
[363933843,1748938241161,-420.0,0.00016438,2]
[363933845,1748938241171,-440.0,0.00016438,2]
[363933847,1748938241181,-1640.36,0.00016438,2]
[363933849,1748938241191,-430.0,0.00016438,2]
[363933851,1748938241200,-1712.17,0.00016438,2]
[363933853,1748938241210,-409.29008165,0.00016438,2]
[363933855,1748938241220,-440.0,0.00016438,2]
[363933857,1748938241230,-440.0,0.00016438,2]
[363933859,1748938241239,-554.27,0.00016438,2]
[363933861,1748938241250,-443.40766333,0.00016438,2]
[363933863,1748938241260,-408.35433147,0.00016438,2]
[363933865,1748938241269,-420.0,0.00016438,2]
[363933867,1748938241278,-430.0,0.00016438,2]
[363933869,1748938241288,-430.0,0.00016438,2]
[363933871,1748938241300,-440.0,0.00016438,2]
[363933873,1748938241311,-440.0,0.00016438,2]
[363933875,1748938241321,-440.0,0.00016438,2]
[363933877,1748938241330,-439.10524416,0.00016438,2]
[363933879,1748938241341,-430.0,0.00016438,2]
[363933881,1748938241350,-430.0,0.00016438,2]
[363933883,1748938241362,-440.0,0.00016438,2]
[363933885,1748938241372,-440.0,0.00016438,2]
[363933887,1748938241383,-440.0,0.00016438,2]
[363933889,1748938241393,-440.0,0.00016438,2]
[363933891,1748938241402,-440.0,0.00016438,2]
[363933893,1748938241412,-440.0,0.00016438,2]
[363933895,1748938241422,-829.22,0.00016438,2]
[363933897,1748938241432,-410.0,0.00016438,2]
[363933899,1748938241441,-440.0,0.00016438,2]
[363933901,1748938241451,-440.0,0.00016438,2]
[363933903,1748938241460,-440.0,0.00016438,2]
[363933905,1748938241470,-440.0,0.00016438,2]
[363933907,1748938241479,-430.0,0.00016438,2]
[363933909,1748938241488,-984.8,0.00016438,2]
[363933911,1748938241498,-436.21154462,0.00016438,2]
[363933913,1748938241507,-440.0,0.00016438,2]
[363933915,1748938241516,-976.43,0.00016438,2]
[363933917,1748938241526,-440.0,0.00016438,2]
[363933919,1748938241535,-440.0,0.00016438,2]
[363933921,1748938241545,-440.0,0.00016438,2]
[363933923,1748938241555,-440.0,0.00016438,2]
[363933925,1748938241566,-447.13378735,0.00016438,2]
[363933927,1748938241576,-440.0,0.00016438,2]
[363933930,1748938241586,-870.31,0.00016438,2]
[363933932,1748938241596,-435.18956624,0.00016438,2]
[363933934,1748938241606,-440.0,0.00016438,2]
[363933935,1748938241617,-440.0,0.00016438,2]
[363933938,1748938241626,-700.74,0.00016438,2]
[363933940,1748938241636,-430.0,0.00016438,2]
[363933942,1748938241645,-351.07240354,0.00016438,2]
[363933944,1748938241654,-430.0,0.00016438,2]
[363933946,1748938241663,-440.0,0.00016438,2]
[363933948,1748938241673,-362.10263772,0.00016438,2]
[363933949,1748938241682,-440.0,0.00016438,2]
[363933951,1748938241691,-440.0,0.00016438,2]
[363933954,1748938241700,-440.0,0.00016438,2]
[363933955,1748938241709,-243.91951072,0.00016438,2]
[363933957,1748938241719,-440.0,0.00016438,2]
[363933959,1748938241728,-440.0,0.00016438,2]
[363933961,1748938241737,-2182.02565099,0.00016612,2]
[363933963,1748938241747,-402.92,0.00016702,3]
[363933966,1748938241756,-448.96726207,0.0001671,2]
[363933967,1748938241765,-430.0,0.0001671,2]
[363933969,1748938241774,-620.36,0.0001671,2]
[363933971,1748938241784,-440.0,0.00016712,2]
[363933973,1748938241793,-440.0,0.00016712,2]
[363933976,1748938241803,-440.0,0.00016712,2]
[363933977,1748938241816,-440.0,0.00016712,2]
[363933979,1748938241826,-440.0,0.00016712,2]
[363933982,1748938241835,-440.0,0.00016712,2]
[363933983,1748938241845,-440.0,0.00016712,2]
[363933986,1748938241855,-440.0,0.00016712,2]
[363933988,1748938241866,-440.0,0.00016712,2]
[363933990,1748938241875,-420.0,0.00016712,2]
[363933992,1748938241885,-440.0,0.00016712,2]
[363933993,1748938241896,-430.0,0.00016712,2]
[363933995,1748938241907,-410.0,0.00016712,2]
[363933997,1748938241917,-440.0,0.00016712,2]
[363933999,1748938241927,-440.0,0.00016712,2]
[363934001,1748938241936,-509.79,0.00016712,2]
[363934003,1748938241945,-440.0,0.00016712,2]
[363934005,1748938241955,-410.0,0.00016712,2]
[363934007,1748938241965,-456.06492943,0.00016712,2]
[363934010,1748938241974,-474.32630807,0.00016712,2]
[363934012,1748938241984,-440.0,0.00016712,2]
[363934014,1748938241994,-451.32547535,0.00016712,2]
[363934016,1748938242003,-440.0,0.00016712,2]
[363934018,1748938242012,-410.0,0.00016712,2]
[363934020,1748938242021,-440.0,0.00016712,2]
[363934022,1748938242031,-440.0,0.00016712,2]
[363934023,1748938242040,-440.0,0.00016712,2]
[363934025,1748938242050,-997.71,0.00016712,2]
[363934027,1748938242059,-420.0,0.00016712,2]
[363934029,1748938242079,-440.0,0.00016712,2]
[363934031,1748938242088,-470.36,0.00016712,2]
[363934033,1748938242098,-1616.35,0.00016712,2]
[363934035,1748938242107,-440.0,0.00016712,2]
[363934037,1748938242117,-440.0,0.00016712,2]
[363934039,1748938242127,-440.0,0.00016712,2]
[363934041,1748938242136,-1272.71,0.00016712,2]
[363934043,1748938242146,-440.0,0.00016712,2]
[363934045,1748938242155,-440.0,0.00016712,2]
[363934047,1748938242164,-440.0,0.00016712,2]
[363934049,1748938242174,-440.0,0.00016712,2]
[363934051,1748938242185,-384.87097002,0.00016712,2]
[363934053,1748938242195,-440.0,0.00016712,2]
[363934055,1748938242204,-440.0,0.00016712,2]
[363934057,1748938242214,-440.0,0.00016712,2]
[363934059,1748938242224,-171.35002777,0.00016712,2]
[363934061,1748938242234,-1941.54,0.00016712,2]
[363934064,1748938242244,-440.0,0.00016712,2]
[363934066,1748938242254,-440.0,0.00016712,2]
[363934068,1748938242263,-440.0,0.00016712,2]
[363934070,1748938242273,-440.0,0.00016712,2]
[363934072,1748938242283,-420.0,0.00016712,2]
[363934074,1748938242295,-440.0,0.00016712,2]
[363934076,1748938242307,-440.0,0.00016712,2]
[363934078,1748938242321,-440.0,0.00016712,2]
[363934080,1748938242331,-440.0,0.00016712,2]
[363934082,1748938242341,-440.0,0.00016712,2]
[363934084,1748938242350,-440.0,0.00016712,2]
[363934086,1748938242360,-468.1,0.00016712,2]
[363934088,1748938242370,-1941.77,0.00016712,2]
[363934090,1748938242380,-420.0,0.00016712,2]
[363934092,1748938242389,-410.0,0.00016712,2]
[363934094,1748938242399,-440.0,0.00016712,2]
[363934096,1748938242410,-440.0,0.00016712,2]
[363934098,1748938242419,-440.0,0.00016712,2]
[363934100,1748938242429,-210.52098603,0.00016712,2]
[363934102,1748938242440,-440.0,0.00016712,2]
[363934104,1748938242449,-410.09027495,0.00016712,2]
[363934106,1748938242458,-1228.53,0.00016712,2]
[363934108,1748938242468,-440.0,0.00016712,2]
[363934111,1748938242478,-1831.97,0.00016712,2]
[363934113,1748938242491,-641.86,0.00016712,2]
[363934115,1748938242504,-404.95509405,0.00016712,2]
[363934118,1748938242517,-1640.36,0.00016712,2]
[363934120,1748938242531,-1712.17,0.00016712,2]
[363934123,1748938242545,-554.27,0.00016712,2]
[363934125,1748938242556,-440.0,0.00016712,2]
[363934128,1748938242578,-430.0,0.00016712,2]
[363934131,1748938242595,-440.0,0.00016712,2]
[363934133,1748938242609,-440.0,0.00016712,2]
[363934136,1748938242623,-430.0,0.00016712,2]
[363934138,1748938242636,-427.76113185,0.00016712,2]
[363934141,1748938242649,-440.0,0.00016712,2]
[363934143,1748938242663,-440.0,0.00016712,2]
[363934146,1748938242677,-420.8842493,0.00016712,2]
[363934148,1748938242691,-829.22,0.00016712,2]
[363934151,1748938242704,-440.0,0.00016712,2]
[363934153,1748938242718,-440.0,0.00016712,2]
[363934155,1748938242732,-440.0,0.00016712,2]
[363934158,1748938242744,-440.0,0.00016712,2]
[363934160,1748938242756,-984.8,0.00016712,2]
[363934163,1748938242773,-440.0,0.00016712,2]
[363934165,1748938242787,-976.43,0.00016712,2]
[363934168,1748938242800,-440.0,0.00016712,2]
[363934170,1748938242815,-440.0,0.00016712,2]
[363934172,1748938242829,-440.0,0.00016712,2]
[363934175,1748938242840,-410.0,0.00016712,2]
[363934177,1748938242853,-440.0,0.00016712,2]
[363934179,1748938242863,-870.31,0.00016712,2]
[363934181,1748938242874,-440.0,0.00016712,2]
[363934183,1748938242885,-440.0,0.00016712,2]
[363934186,1748938242898,-700.74,0.00016712,2]
[363934188,1748938242910,-440.0,0.00016712,2]
[363934190,1748938242923,-450.0,0.00016712,2]
[363934193,1748938242935,-420.0,0.00016712,2]
[363934195,1748938242948,-440.0,0.00016712,2]
[363934198,1748938242960,-440.0,0.00016712,2]
[363934200,1748938242974,-440.0,0.00016712,2]
[363934202,1748938242987,-1550.25602377,0.000169,2]
[363934204,1748938243000,-620.36,0.00016983,2]
[363934206,1748938243015,-620.36,0.00016985,2]
[363934207,1748938243027,-440.0,0.00016986,2]
[363934208,1748938243038,-440.0,0.00016986,2]
[363934210,1748938243048,-440.0,0.00016986,2]
[363934212,1748938243059,-440.0,0.00016986,2]
[363934213,1748938243073,-440.0,0.00016986,2]
[363934215,1748938243085,-440.0,0.00016986,2]
[363934216,1748938243099,-440.0,0.00016986,2]
[363934217,1748938243111,-440.0,0.00016986,2]
[363934218,1748938243124,-440.0,0.00016986,2]
[363934219,1748938243135,-375.25588736,0.00016986,2]
[363934221,1748938243148,-440.0,0.00016986,2]
[363934222,1748938243160,-509.79,0.00016986,2]
[363934223,1748938243172,-420.0,0.00016986,2]
[363934224,1748938243185,-440.0,0.00016986,2]
[363934225,1748938243197,-272.68,0.00016986,2]
[363934226,1748938243208,-440.0,0.00016986,2]
[363934227,1748938243219,-440.0,0.00016986,2]
[363934228,1748938243229,-420.0,0.00016986,2]
[363934229,1748938243241,-997.71,0.00016986,2]
[363934230,1748938243252,-470.36,0.00016986,2]
[363934231,1748938243264,-1616.35,0.00016986,2]
[363934232,1748938243276,-400.0,0.00016986,2]
[363934233,1748938243289,-440.0,0.00016986,2]
[363934234,1748938243302,-440.0,0.00016986,2]
[363934235,1748938243315,-1272.71,0.00016986,2]
[363934236,1748938243327,-440.0,0.00016986,2]
[363934237,1748938243340,-440.0,0.00016986,2]
[363934238,1748938243353,-440.0,0.00016986,2]
[363934239,1748938243366,-440.0,0.00016986,2]
[363934240,1748938243380,-440.0,0.00016986,2]
[363934241,1748938243393,-440.0,0.00016986,2]
[363934242,1748938243405,-440.0,0.00016986,2]
[363934243,1748938243419,-1941.54,0.00016986,2]
[363934244,1748938243431,-440.0,0.00016986,2]
[363934245,1748938243443,-397.44528553,0.00016986,2]
[363934247,1748938243455,-440.0,0.00016986,2]
[363934249,1748938243468,-440.0,0.00016986,2]
[363934251,1748938243479,-440.0,0.00016986,2]
[363934253,1748938243491,-440.0,0.00016986,2]
[363934255,1748938243503,-440.0,0.00016986,2]
[363934257,1748938243515,-440.0,0.00016986,2]
[363934259,1748938243526,-408.13232613,0.00016986,2]
[363934261,1748938243537,-440.0,0.00016986,2]
[363934262,1748938243549,-468.1,0.00016986,2]
[363934263,1748938243560,-1941.77,0.00016986,2]
[363934264,1748938243573,-440.0,0.00016986,2]
[363934265,1748938243586,-420.0,0.00016986,2]
[363934266,1748938243598,-440.0,0.00016986,2]
[363934267,1748938243608,-1228.53,0.00016986,2]
[363934268,1748938243619,-440.0,0.00016986,2]
[363934269,1748938243631,-440.0,0.00016986,2]
[363934270,1748938243642,-1831.97,0.00016986,2]
[363934272,1748938243653,-641.86,0.00016986,2]